{"text_format":"1","workbook":"xlsx","n_sheets":1,"sheets":["1"],"not_rendered":{"charts":0,"images":0,"macros":1,"external_links":0,"defined_names":0,"comments":0,"pivot_tables":0},"unopened":[],"bounds":{"document_bytes":16777216,"sheet_cells":100000,"rows_first":2000,"rows_last":500,"rows_between":2000,"halvings":0,"cell_chars":16384,"cell_head_chars":4096},"cells_cut":0,"cells_raw":0,"read":"whole","date_system":"1900"}

{"sheet":"1","index":0,"n_rows":26,"n_cols":197,"rows_kept":26,"cut":false,"hidden":false,"merged":[[3,175,4,175],[2,194,4,194],[2,196,4,196],[2,189,4,189],[2,190,4,190],[2,191,4,191],[2,192,4,192],[2,193,4,193],[2,185,4,185],[2,186,4,186],[2,188,4,188],[2,195,4,195],[2,168,4,168],[2,169,4,169],[2,170,4,170],[3,176,4,176],[2,187,4,187],[3,160,3,162],[2,146,4,146],[3,163,3,165],[3,166,4,166],[3,152,4,152],[3,153,4,153],[3,154,3,156],[3,157,3,159],[3,173,4,173],[3,177,4,177],[3,178,3,179],[2,181,4,181],[2,182,4,182],[2,183,4,183],[2,171,2,179],[3,171,4,171],[3,172,4,172],[2,184,4,184],[3,174,4,174],[1,142,4,142],[1,143,4,143],[1,147,1,150],[1,144,1,146],[2,147,4,147],[2,148,4,148],[2,149,4,149],[2,150,4,150],[2,144,4,144],[2,145,4,145],[3,127,4,127],[3,128,3,140],[2,91,4,91],[2,92,4,92],[2,93,2,108],[3,93,3,94],[3,95,3,96],[3,97,3,98],[3,103,3,104],[3,105,3,106],[3,107,3,108],[2,120,4,120],[3,99,3,100],[3,101,3,102],[3,126,4,126],[3,124,4,124],[2,112,2,118],[2,119,4,119],[2,121,2,122],[2,110,4,110],[2,111,4,111],[2,123,2,124],[3,112,4,112],[3,113,3,118],[3,121,4,121],[3,122,4,122],[3,123,4,123],[1,82,1,89],[1,80,4,80],[1,81,4,81],[1,44,1,55],[3,12,4,12],[3,13,4,13],[3,14,3,16],[3,17,3,19],[3,20,3,22],[3,23,3,25],[2,28,2,39],[2,44,2,46],[3,27,4,27],[3,28,4,28],[2,47,2,55],[3,2,4,2],[3,3,4,3],[3,4,4,4],[3,5,3,6],[3,7,3,8],[3,9,3,10],[2,82,2,85],[2,86,2,89],[3,77,3,78],[3,82,3,83],[3,84,3,85],[3,86,3,87],[3,88,3,89],[2,63,4,63],[2,64,4,64],[2,65,4,65],[2,67,2,68],[2,69,2,71],[2,73,4,73],[2,74,4,74],[2,75,4,75],[3,69,3,71],[2,76,4,76],[2,77,2,78],[3,0,4,0],[3,1,4,1],[3,51,4,51],[3,52,4,52],[3,53,4,53],[3,54,4,54],[3,55,4,55],[3,67,3,68],[3,45,4,45],[3,46,4,46],[3,47,4,47],[3,48,4,48],[3,49,4,49],[3,50,4,50],[2,66,4,66],[3,29,4,29],[3,30,4,30],[3,31,3,32],[3,33,4,33],[3,34,3,39],[3,44,4,44],[1,41,4,41],[1,42,4,42],[1,43,4,43]]}
["Liczba w","Liczba w","Liczba w","2021 r.","2022 r.","Liczba osób podlegających szczepieniu w ","Liczba osób zaszczepinych podstawowo w ","Liczba osób nie zaszczepinych podstawowo w ",null,null,null,null,null,null,null,null,null,null,null,null,null,null,null,null,null,null,null,null,null,null,null,null,null,null,null,null,null,null,null,null,null,"Tabela Nr 13. Czynniki uciążliwe.  Zagrożenia występujące w czasie służby wraz z liczbą osób narażonych na nie.",null,null,null,null,null,null,null,null,null,null,null,null,null,null,null,null,null,null,null,null,null,null,null,null,null,null,null,null,null,null,null,null,null,null,null,null,null,null,"Tabela Nr 17. Szkolenia z zakresu BHP funkcjonariuszy PSP.",null,null,null,null,null,null,null,null,null,null,"Liczba w ",null,null,null,null,null,null,null,null,null,null,null,null,null,null,null,null,null,null,null,null,null,null,null,null,null,null,null,null,null,null,null,null,null,null,null,null,null,null,null,null,null,null,null,null,null,null,null,null,null,null,"Tabela Nr 29. Poszkodowani i wypadki strażaków Ochotniczej Straży Pożarnej."]
["Liczba w","Liczba w","Liczba w",null,null,null,null,null,null,null,null,null,null,null,null,null,null,null,null,null,null,null,null,null,null,null,null,"Tabela Nr 12. Czynniki szkoldliwe. Zagrożenia występujące w czasie służby wraz z liczbą osób narażonych na nie.",null,null,null,null,null,null,null,null,null,null,null,null,null,"Lp.","Jednostka organizacyjna PSP","Liczba osób zatrudnionych w warunkach występowania czynników uciążliwych (ogółem)","Czynniki zagrożeń",null,null,null,null,null,null,null,null,null,null,null,null,null,null,null,null,null,null,"Tabela Nr 15. Szczepienie ochronne funkcjonariuszy PSP.",null,null,null,null,null,null,null,null,null,"Tabela Nr 16. Szczepienie ochronne funkcjonariuszy GPR.",null,null,null,null,null,null,"Lp.","Jednostka organizaycjna PSP",{"$f":"CE21&E1","v":"Liczba przeszkolonych osób z zakresu BHP w jednostkach organizacyjnych PSP w 2022 r."},null,null,null,null,null,null,null,null,"Tabela Nr 18. Stan wyposażenia strażaków w środki ochrony indywidualnej.",null,null,null,null,null,null,null,null,null,null,null,null,null,null,null,null,null,null,"Tabela Nr 27. Kontrole BHP w Państwowej Straży Pożarnej.",null,null,null,null,null,null,null,null,null,null,null,null,null,null,null,null,null,null,null,null,null,null,null,null,null,null,null,null,null,null,null,"Lp.","Teren administracyjny jednostki organizacyjnej PSP","Liczba wypadków  strażaków OSP ",null,null,"Liczba poszkodowanych strażaków OSP",null,null,null,null,null,null,null,null,null,null,null,null,null,null,null,null,null,null,null,null,"Tabela Nr 31. Okoliczności wypadków strażaków OSP.",null,null,null,null,null,null,null,null,null,null,null,null,"Tabela Nr 32. Następstwa wypadków strażaków OSP."]
["Liczba w","Liczba w","Tabela Nr 1. Organizacja służby BHP w jednostkach organizacyjnych PSP.",null,null,null,null,null,null,null,null,null,"Tabela Nr 4. Wypadki funkcjonariuszy PSP podczas akcji ratowniczo - gaśniczych.",null,null,null,null,null,null,null,null,null,null,null,null,null,null,null,"Czynniki zagrożeń",null,null,null,null,null,null,null,null,null,null,null,null,null,null,null,"Uciążliwe",null,null,"Niebezpieczne",null,null,null,null,null,null,null,null,null,null,null,null,null,null,null,"Lp.","Jednostka organizacyjna PSP","Rodzaj szczepienia",{"$f":"F1&E1","v":"Liczba osób podlegających szczepieniu w 2022 r."},{"$f":"G1&E1","v":"Liczba osób zaszczepinych podstawowo w 2022 r."},null,{"$f":"H1&E1","v":"Liczba osób nie zaszczepinych podstawowo w 2022 r."},null,null,null,"Lp.","Jednostka organizacyjna PSP (GPR)","Rodzaj szczepienia","Liczba osób podlegających szczepieniu","Liczba osób zaszczepinych podstawowo",null,null,null,null,"Kadra kierownicza (komendant z-ca komendanta, dowódca JRG, z-ca dowódcy JRG",null,null,null,"Pozostali funkcjonariusze (w tym kadeci, podchorążowie, praktykanci i stażyści)",null,null,null,null,"Lp.","Jednostka organizacyjna PSP ","Stan wyposażenia  ",null,null,null,null,null,null,null,null,null,null,null,null,null,null,null,null,"Lp.","Jednostki organizacyjne PSP ","Kontrole BHP",null,null,null,null,null,null,"Ilość przeprowadzonych przeglądów warunków pracy (PWP i SPWP)","Ogólna ilość stwierdzonych uchybień i braków","Ilość wydanych nakazów wstrzymania prac",null,"Ilość osób",null,null,"Tabela Nr 28. Środki zapobiegawcze w zakresie poprawy pracy w zakresie BHP.",null,null,null,null,null,null,null,null,null,null,null,null,null,null,null,null,null,"Ogółem","Indywidualnych","Zbiorowych","Ogółem","Lekkich","Ciężkich","Śmiertelnych",null,"Tabela Nr 30. Wypadki strażaków OSP podczas akcji ratowniczo - gaśniczych.",null,null,null,null,null,null,null,null,null,null,null,null,null,null,null,"Lp.","Teren admnistracyjny jednostka organizacyjnej PSP","Wypadki ogółem","Wypadki zaistniałe podczas",null,null,null,null,null,null,null,null,null,"Lp.","Teren admnistracyjny jednostka organizacyjnej PSP","Ogółem poszkodowanych","Utrata kończyn lub ich części","Złamania, pęknięcia kości, zwichnięcia","Stłuczenie","Rany","Oparzenia, odmrożenia","Urazy ścięgien i mięśni","Obrażenia wewnętrzne","Zatrucia","Uszkodzenie wzroku","Urazy zębów i twarzoczaszki","Niedowłady, udary, zawały serca\n","Ostry zespół odcinka L/S","Inne następstwa\n"]
["Lp.","Sprawozdanie za okres","Lp.","Jednostka organizacyjna PSP w formacie np.:\n KG PSP Warszawa","Stan etatowy służby BHP","Kwalifikacje w zakresie BHP",null,"Podległość służbowa pracownika służby BHP",null,"Usytuowanie stanowiska ds. BHP w strukturze organizacyjnej komendy",null,null,"Lp.","Jednostka organizacyjna PSP","Akcje ratownicze",null,null,"Ratownicy PSP uczestniczący w akcjach ratowniczych ",null,null,"Wypadki funkcjonariuszy PSP podczas akcji",null,null,"Poszkodowani funkcjonariusze PSP w wypadkach podczas akcji ratowniczo-gasniczych",null,null,null,"Lp.","Jednostka organizacyjna PSP","Liczba osób zatrudnionych w warunkach występowania czynnika szkodliwych (ogółem)","Chemiczne i dymy pożarowe","Promieniowanie",null,"Biologiczne","Fizyczne",null,null,null,null,null,null,null,null,null,"obciążenie fizyczne","obciążenie psychiczne","pozycja przy pracy, środowisko pracy","elementy i urządzenia  w ruchu","nieruchome elementy i urządzenia","zła widoczność","wysoka temperatura","niska temperatura","niebezpieczne powierzchnie","naruszona konstrukcja","praca na wysokości lub poniżej poziomu gruntu","Zachowanie osób, inne",null,"Tabela Nr 14. Badania lekarskie funkcjonariuszy PSP.",null,null,null,null,null,null,null,null,null,"W tym:",null,"W tym z powodu:",null,null,null,null,null,null,null,"W tym:",null,null,null,null,"Szkolenie wstępne",null,"Szkolenie okresowe",null,"Szkolenie wstępne",null,"Szkolenie okresowe",null,null,null,null,"Ubranie specjalne",null,"Buty strażackie gumowe",null,"Buty strażackie skórzane",null,"Rękawice specjalne",null,"Hełm strażacki",null,"Kominiarka niepalna",null,"Maska do aparatu oddechowego",null,"Sygnalizator bezruchu",null,null,null,null,"Ogółem","w tym prowadzone przez:",null,null,null,null,null,null,null,"przy maszynach i urządzeniach techn.","ze względu na zagrożenie budowlane","ukaranych za uchybienia z zakresu bhp","odsuniętych od pełnienia służby i wykon. pracy",null,"Lp.","Jednostka organizacyjna PSP","Zastosowano środki zapobiegawcze w zakresie",null,null,null,null,null,null,null,null,null,null,null,null,null,null,null,null,null,null,null,null,null,null,null,"Lp.","Teren administracyjny jednostki organizacyjnej PSP","Akcje ratownicze,  w których uczestniczyli strażacy OSP",null,null,"Liczba strażaków  OSP uczestniczących w akcjach ratowniczych ",null,null,"Wypadki strażaków OSP podczas akcji",null,null,"Poszkodowani strażacy OSP w wypadkach podczas akcji ratowniczo-gasniczych",null,null,"Wskaźnik częstotliwości wypadków (liczba poszkodowanych x 1000 podzielona przez liczbę strażaków",null,null,null,null,"Alarmu","Działań ratowniczych","Jazdy do i z działań ratowniczych","Jazdy do i z manewrów, zawodów","Szkolenia, ćwiczeń i inspekcji","Konserwacji napraw sprzętu i urządzeń","Zajęć sportowych","Innej służby"]
[null,null,null,null,null,"Posiadający kwalifikacje","Nie posiadający kwalifikacji","Podporządkowani bezpośrednio kierownikowi jednostki organizacyjnej","Inna podległość","Samodzielne stanowisko ds. BHP","Inne stanowisko pracy, któremu przypisane są zadania z zakresu BHP (stanowisko łączone)",null,null,null,{"$f":"$C$1&\" \"&$D$1","v":"Liczba w 2021 r."},{"$f":"$C$1&\" \"&$E$1","v":"Liczba w 2022 r."},"% przyrostu do roku poprzedniego",{"$f":"$C$1&\" \"&$D$1","v":"Liczba w 2021 r."},{"$f":"$C$1&\" \"&$E$1","v":"Liczba w 2022 r."},"% przyrostu do roku poprzedniego",{"$f":"$C$1&\" \"&$D$1","v":"Liczba w 2021 r."},{"$f":"$C$1&\" \"&$E$1","v":"Liczba w 2022 r."},"% przyrostu do roku poprzedniego",{"$f":"$C$1&\" \"&$D$1","v":"Liczba w 2021 r."},{"$f":"$C$1&\" \"&$E$1","v":"Liczba w 2022 r."},"% przyrostu do roku poprzedniego",null,null,null,null,null,"Elektromagnetyczne","Jonizujące i inne",null,"Wybuch","Pyły","Hałas","Drgania mechaniczne","Prąd elektr.","Inne",null,null,null,null,null,null,null,null,null,null,null,null,null,null,null,null,null,"Lp.","Jednostka organizacyjna PSP",{"$f":"BH21&$E$1","v":"Liczba osób zobowiązanych do przeprowadzenia badań lekarskich w 2022 r."},{"$f":"BI21&$E$1","v":"Liczba osób, które wykonały badania lekarskie w 2022 r."},"Przyczyny niewykonania badań profilaktycznych",null,null,null,null,null,"Pierwotnie","Uzupełniająco","Braku środków finansowych","Długotrwałego zwolnienia lekarskiego lub  braku zgody lekarza kwalifikującego do szczepień","Braku zgody strażaka",null,null,null,null,null,"Pierwotnie","Uzupełniająco",null,null,null,"Liczba osób podlegających szkoleniu","Liczba osób przeszkolonych","Liczba osób podlegających szkoleniu","Liczba osób przeszkolonych","Liczba osób podlegających szkoleniu","Liczba osób przeszkolonych","Liczba osób podlegających szkoleniu","Liczba osób przeszkolonych",null,null,null,"N","S","N","S","N","S","N","S","N","S","N","S","N","S","N","S",null,null,null,null,"PIP","służbę BHP","służbę zdrowia MSWiA, PIS","UDT","SIP","komórki organizacyjne jedn. org. PSP",null,null,null,null,null,null,null,null,null,"organizacji pracy","nadzoru","szkolenia","taktyki działań ratowniczych","środków ochrony indywidualnej","środków ochrony zbiorowej","wymagań bhp w obiektach","wymagań bhp w wyposażeniu techn.","kwatermis-trzowskim","ergonomii","profilaktycznej ochrony zdrowia","ustalenia zasad bhp","Dyscyplinującym",null,null,null,null,null,null,null,null,null,null,null,null,null,{"$f":"$C$1&\" \"&$D$1","v":"Liczba w 2021 r."},{"$f":"$C$1&\" \"&$E$1","v":"Liczba w 2022 r."},"% przyrostu do roku poprzedniego",{"$f":"$C$1&\" \"&$D$1","v":"Liczba w 2021 r."},{"$f":"$C$1&\" \"&$E$1","v":"Liczba w 2022 r."},"% przyrostu do roku poprzedniego",{"$f":"$C$1&\" \"&$D$1","v":"Liczba w 2021 r."},{"$f":"$C$1&\" \"&$E$1","v":"Liczba w 2022 r."},"% przyrostu do roku poprzedniego",{"$f":"$C$1&\" \"&$D$1","v":"Liczba w 2021 r."},{"$f":"$C$1&\" \"&$E$1","v":"Liczba w 2022 r."},"% przyrostu do roku poprzedniego",null,null,null,null,null,null,null,null,null,null,null,null,"w strażnicy","poza strażnicą"]
[1,2,1,2,3,4,5,6,7,8,9,null,1,2,3,4,5,6,7,8,9,10,11,12,13,14,null,1,2,3,4,5,6,7,8,9,10,11,12,13,null,1,2,3,4,5,6,7,8,9,10,11,12,13,14,15,null,1,2,3,4,5,null,1,2,3,4,6,7,8,9,10,null,1,2,3,4,5,6,null,1,2,3,4,5,6,7,8,9,10,null,1,2,3,4,5,6,7,8,9,10,11,12,13,14,15,16,17,18,null,1,2,3,4,5,6,7,8,9,10,11,12,13,14,15,null,1,2,3,4,5,6,7,8,9,10,11,12,13,14,15,null,1,2,3,4,5,6,7,8,9,null,1,2,3,4,5,6,7,8,9,10,11,12,13,14,15,null,1,2,3,4,5,6,7,8,9,10,11,12,null,1,2,3,4,5,6,7,8,9,10,11,12,13,14,15,16]
[1,"CAŁY ROK",1,null,null,null,null,null,null,null,null,null,1,{"$f":"$D$7","v":0},null,null,{"$f":"ROUND((P7-O7)/O7,4)","v":{"$error":"#DIV/0!"}},null,null,{"$f":"ROUND((S7-R7)/R7,4)","v":{"$error":"#DIV/0!"}},null,null,{"$f":"ROUND((V7-U7)/U7,4)","v":{"$error":"#DIV/0!"}},null,null,{"$f":"ROUND((Y7-X7)/X7,4)","v":{"$error":"#DIV/0!"}},null,1,{"$f":"$D$7","v":0},null,null,null,null,null,null,null,null,null,null,null,null,1,{"$f":"$D$7","v":0},null,null,null,null,null,null,null,null,null,null,null,null,null,null,1,{"$f":"$D$7","v":0},null,null,null,null,1,{"$f":"$D$7","v":0},"Dur brzuszny i tężec",null,null,null,null,null,null,null,1,null,null,null,null,null,null,1,{"$f":"$D$7","v":0},null,null,null,null,null,null,null,null,null,1,{"$f":"CD7","v":0},null,null,null,null,null,null,null,null,null,null,null,null,null,null,null,null,null,1,{"$f":"CO7","v":0},null,null,null,null,null,null,null,null,null,null,null,null,null,null,1,{"$f":"CO7","v":0},null,null,null,null,null,null,null,null,null,null,null,null,null,null,1,null,null,null,null,null,null,null,null,null,1,{"$f":"EN7","v":0},null,null,{"$f":"ROUND((EZ7-EY7)/EY7,4)","v":{"$error":"#DIV/0!"}},null,null,{"$f":"ROUND((FC7-FB7)/FB7,4)","v":{"$error":"#DIV/0!"}},null,{"$f":"FP7+FQ7+FR7","v":0},{"$f":"ROUND((FF7-FE7)/FE7,4)","v":{"$error":"#DIV/0!"}},null,null,0,{"$f":"ROUND((FI7*1000)/FC7,2)","v":{"$error":"#DIV/0!"}},null,1,{"$f":"EN7","v":0},{"$f":"EO7","v":0},null,null,null,null,null,null,null,null,null,null,1,{"$f":"EN7","v":0},{"$f":"ER7","v":0}]
[null,null,null,null,null,null,null,null,null,null,null,null,null,null,null,null,null,null,null,null,null,null,null,null,null,null,null,null,null,null,null,null,null,null,null,null,null,null,null,null,null,null,null,null,null,null,null,null,null,null,null,null,null,null,null,null,null,null,null,null,null,null,null,2,0,"Tężec",null,null,null,null,null,null,null,2]
[null,null,null,null,null,null,null,null,null,null,null,null,null,null,null,null,null,null,null,null,null,null,null,null,null,null,null,null,null,null,null,null,null,null,null,null,null,null,null,null,null,null,null,null,null,null,null,null,null,null,null,null,null,null,null,null,null,null,null,null,null,null,null,3,0,"WZW typ A",null,null,null,null,null,null,null,3]
[null,null,null,null,null,null,null,null,null,null,null,null,null,null,null,null,null,null,null,null,null,null,null,null,null,null,null,null,null,null,null,null,null,null,null,null,null,null,null,null,null,null,null,null,null,null,null,null,null,null,null,null,null,null,null,null,null,null,null,null,null,null,null,4,0,"Błonnica i tężec",null,null,null,null,null,null,null,4,null,null,null,null,null,null,null,null,null,null,null,null,null,null,null,null,null,null,{"$f":"IF(CO7<>\"\",TRUE,FALSE)","v":true},{"$f":"IF(CP7<>\"\",TRUE,FALSE)","v":false},false,false,false,false,false,false,false,false,false,false,false,false,false,false,false,null,null,null,{"$f":"IF(DI7<>\"\",TRUE,FALSE)","v":false},false,false,false,false,false,false,false,false,false,false,false,false,null,null,null,{"$f":"IF(DY7<>\"\",TRUE,FALSE)","v":false},false,false,false,false,false,false,false,false,false,false,false,false,null,null,{"$f":"IF(EN7<>\"\",TRUE,FALSE)","v":false},{"$f":"IF(EO7<>\"\",TRUE,FALSE)","v":false},{"$f":"EO7-EQ7","v":0},{"$f":"EO7-EP7","v":0},{"$f":"IF(EQ7>0,(EP7+(EQ7*10)),EO7)","v":0},{"$f":"$ER$7-SUM($ES$7:$EU$7)+ES7","v":0},{"$f":"$ER$7-SUM($ES$7:$EU$7)+ET7","v":0},{"$f":"$ER$7-SUM($ES$7:$EU$7)+EU7","v":0},null,null,null,{"$f":"IF(EY7<>\"\",TRUE,FALSE)","v":false},false,null,false,false,null,false,null,null,{"$f":"IF(FH7<>\"\",TRUE,FALSE)","v":false},{"$f":"IF(FI7<>\"\",TRUE,FALSE)","v":false},null,null,null,null,null,null,{"$f":"$FO$7-SUM($FP$7:$FX$7)+FP7","v":0},0,0,0,0,0,0,0,0,null,null,null,null,{"$f":"($GB$7*3)-SUM($GC$7:$GO$7)+GC7","v":0},0,0,0,0,0,0,0,0,0,0,null,{"$f":"($GB$7*3)-SUM($GC$7:$GO$7)+GO7","v":0}]
[null,null,null,null,null,null,null,null,null,null,null,null,null,null,null,null,null,null,null,null,null,null,null,null,null,null,null,null,null,null,null,null,null,null,null,null,null,null,null,null,null,null,null,null,null,null,null,null,null,null,null,null,null,null,null,null,null,null,null,null,null,null,null,5,0,"Dur brzuszny",null,null,null,null,null,null,null,5,null,null,null,null,null,null,null,null,null,null,null,null,null,null,null,null,null,null,null,null,null,null,null,null,null,null,null,null,null,null,null,null,null,null,null,null,null,null,null,{"$f":"$DI$7-SUM($DJ$7:$DO$7)+DJ7","v":0},0,0,0,0,0,null,null,null,null,null,null,null,null,null,null,null,null,null,null,null,null,null,null,null,null,null,null,null,null,null,null,null,null,{"$f":"IF(EQ7>0,(EP7+(EQ7*2)),EO7)","v":0}]
[null,null,null,null,null,null,null,null,null,null,null,null,null,null,null,null,null,null,null,null,null,null,null,null,null,null,null,null,null,null,null,null,null,null,null,null,null,null,null,null,null,null,null,null,null,null,null,null,null,null,null,null,null,null,null,null,null,null,null,null,null,null,null,6,0,"Grypa",null,null,null,null,null,null,null,6]
[null,null,null,null,null,null,null,null,null,null,null,null,null,null,null,null,null,null,null,null,null,null,null,null,null,null,null,null,null,null,null,null,null,null,null,null,null,null,null,null,null,null,null,null,null,null,null,null,null,null,null,null,null,null,null,null,null,null,null,null,null,null,null,7,0,"Kleszczowe zapalenie mózgu",null,null,null,null,null,null,null,7]
[null,null,null,null,null,null,null,null,null,null,null,null,null,null,null,null,null,null,null,null,null,null,null,null,null,null,null,null,null,null,null,null,null,null,null,null,null,null,null,null,null,null,null,null,null,null,null,null,null,null,null,null,null,null,null,null,null,null,null,null,null,null,null,8,0,"WZW typ B",null,null,null,null,null,null,null,8]
[null,null,null,null,null,null,null,null,null,null,null,null,null,null,null,null,null,null,null,null,null,null,null,null,null,null,null,null,null,null,null,null,null,null,null,null,null,null,null,null,null,null,null,null,null,null,null,null,null,null,null,null,null,null,null,null,null,null,null,null,null,null,null,9,0,null,null,null,null,null,null,null,null,9,null,null,null,null,null,null,null,null,null,null,null,null,null,null,null,null,null,null,null,null,null,null,null,null,null,null,null,null,null,null,null,null,null,null,null,null,null,null,null,null,null,null,null,null,null,null,null,null,null,null,null,null,null,null,null,null,null,null,null,null,null,null,null,null,null,null,null,null,null,null,null,null,null,{"$f":"IF(ER7<>\"\",TRUE,FALSE)","v":false}]
[null,null,null,null,null,null,null,null,null,null,null,null,null,null,null,null,null,null,null,null,null,null,null,null,null,null,null,null,null,null,null,null,null,null,null,null,null,null,null,null,null,null,null,null,null,null,null,null,null,null,null,null,null,null,null,null,null,null,null,null,null,null,null,10,0,null,null,null,null,null,null,null,null,10]
[null,null,null,null,null,null,null,null,null,null,null,null,null,null,null,null,null,null,null,null,null,null,null,null,null,null,null,null,null,null,null,null,null,null,null,null,null,null,null,null,null,null,null,null,null,null,null,null,null,null,null,null,null,null,null,null,null,null,null,null,null,null,null,11,0,null,null,null,null,null,null,null,null,11]
[]
[]
[null,null,null,{"$f":"IF(D7<>\"\",TRUE,FALSE)","v":false},{"$f":"IF(E7<>\"\",TRUE,FALSE)","v":false},{"$f":"E7-G7","v":0},{"$f":"E7-F7","v":0},{"$f":"E7-I7","v":0},{"$f":"E7-H7","v":0},{"$f":"E7-K7","v":0},{"$f":"E7-J7","v":0},null,null,null,{"$f":"IF(O7<>\"\",TRUE,FALSE)","v":false},{"$f":"IF(P7<>\"\",TRUE,FALSE)","v":false},null,{"$f":"IF(R7<>\"\",TRUE,FALSE)","v":false},{"$f":"IF(S7<>\"\",TRUE,FALSE)","v":false},null,{"$f":"IF(U7<>\"\",TRUE,FALSE)","v":false},{"$f":"IF(V7<>\"\",TRUE,FALSE)","v":false},null,{"$f":"IF(X7<>\"\",TRUE,FALSE)","v":false},{"$f":"IF(Y7<>\"\",TRUE,FALSE)","v":false},null,null,null,null,{"$f":"IF(AD7<>\"\",TRUE,FALSE)","v":false},false,false,false,false,false,false,false,false,false,false,null,null,null,{"$f":"IF(AR7<>\"\",TRUE,FALSE)","v":false},false,false,false,false,false,false,false,false,false,false,false,false,null,null,null,{"$f":"IF(BH7<>\"\",TRUE,FALSE)","v":false},{"$f":"IF(BI7<>\"\",TRUE,FALSE)","v":false},{"$f":"IF(BJ7<>\"\",TRUE,FALSE)","v":false}]
[null,null,null,null,null,null,null,null,null,null,null,null,null,null,null,null,null,null,null,null,null,null,null,null,null,null,null,null,null,null,null,null,null,null,null,null,null,null,null,null,null,null,null,null,null,null,null,null,null,null,null,null,null,null,null,null,null,null,null,"Liczba osób zobowiązanych do przeprowadzenia badań lekarskich w ","Liczba osób, które wykonały badania lekarskie w ",null,null,null,null,null,null,null,null,null,null,null,null,null,null,null,null,null,null,null,null,null,"Liczba przeszkolonych osób z zakresu BHP w jednostkach organizacyjnych PSP w "]
[]
[]
[]
[]
[null,null,null,null,168]